fUSD/lending_fUSD_20251023
["ID","MTS","AMOUNT","RATE_DAILY","PERIOD"]
[392195118,1761249490263,194.40211215,0.00024932,2]
[392195249,1761249661520,200.0,0.00036613,120]
[392195253,1761249708994,749.56052645,0.00036613,120]
[392195265,1761249743833,200.0,0.00036612,30]
[392195266,1761249744289,300.0,0.00036612,30]
[392195275,1761249800676,500.0,0.00024932,2]
[392195285,1761249838707,214.8,0.00036612,30]
[392195307,1761249960618,200.0,0.00036612,120]
[392195310,1761249962555,165.17062529,0.00024932,2]
[392195313,1761250027123,-151.0,0.00032877,120]
[392195314,1761250027145,-151.32905231,0.00033456,120]
[392195318,1761250036084,-148.67094769,0.00033456,120]
[392195319,1761250036106,-300.0,0.00034034,120]
[392195320,1761250036127,-1811.298066,0.00035016,2]
[392195321,1761250036148,-398.47,0.00035192,2]
[392195322,1761250036171,-540.0,0.00035707,2]
[392195323,1761250036192,-470.0104,0.00036,30]
[392195324,1761250036214,-184.4707543,0.00036164,120]
[392195332,1761250043519,200.0,0.00036612,30]
[392195333,1761250043990,300.0,0.00036612,30]
[392195352,1761250163148,-195.0,0.00036164,120]
[392195353,1761250163172,-540.0,0.00036379,2]
[392195354,1761250163195,-540.0,0.00036396,2]
[392195355,1761250163216,-220.0,0.00036429,4]
[392195356,1761250163237,-500.0,0.00036599,120]
[392195357,1761250163258,-1200.0,0.00036612,3]
[392195358,1761250163281,-596.0,0.00036755,7]
[392195359,1761250163302,-300.0,0.00036761,3]
[392195360,1761250163323,-540.0,0.00036763,120]
[392195361,1761250163344,-596.0,0.00036858,2]
[392195362,1761250163365,-1600.0,0.00036859,3]
[392195363,1761250163384,-400.0,0.00036859,2]
[392195364,1761250163406,-186.0,0.00036859,3]
[392195365,1761250163428,-540.0,0.0003686,7]
[392195366,1761250163449,-540.0,0.00036995,7]
[392195367,1761250163472,-500.0,0.00036999,15]
[392195368,1761250163493,-500.0,0.00036999,15]
[392195369,1761250163514,-500.0,0.00036999,15]
[392195370,1761250163536,-500.0,0.00036999,15]
[392195371,1761250163557,-500.0,0.00036999,15]
[392195372,1761250163578,-377.02978557,0.00036999,15]
[392195373,1761250163598,-8814.0,0.00037,2]
[392195374,1761250163619,-166.66,0.00037196,30]
[392195375,1761250163641,-825.26,0.00037281,48]
[392195376,1761250163665,-682.0,0.00037281,7]
[392195377,1761250163691,-596.0,0.00037881,2]
[392195378,1761250163713,-166.66,0.00037979,30]
[392195379,1761250163733,-150.0,0.00037979,2]
[392195380,1761250163755,-596.0,0.0003832,120]
[392195381,1761250163777,-682.0,0.00038504,2]
[392195382,1761250163798,-166.66,0.00038762,30]
[392195383,1761250163819,-151.0,0.0003877,2]
[392195384,1761250163840,-151.0,0.0003877,2]
[392195385,1761250163862,-151.0,0.0003877,2]
[392195386,1761250163883,-151.0,0.0003877,2]
[392195387,1761250163905,-151.0,0.0003877,2]
[392195388,1761250163926,-151.0,0.0003877,2]
[392195389,1761250163947,-151.0,0.0003877,2]
[392195390,1761250163968,-151.0,0.0003877,2]
[392195391,1761250163990,-151.0,0.0003877,2]
[392195392,1761250164011,-151.0,0.0003877,2]
[392195393,1761250164031,-151.0,0.0003877,2]
[392195394,1761250164052,-151.0,0.0003877,2]
[392195395,1761250164073,-151.0,0.0003877,2]
[392195396,1761250164094,-151.0,0.0003877,2]
[392195397,1761250164115,-151.0,0.0003877,2]
[392195398,1761250164136,-151.0,0.0003877,2]
[392195399,1761250164158,-151.0,0.0003877,2]
[392195400,1761250164179,-151.0,0.0003877,2]
[392195401,1761250164200,-151.0,0.0003877,2]
[392195402,1761250164222,-151.0,0.0003877,2]
[392195403,1761250164244,-151.0,0.0003877,2]
[392195404,1761250164265,-151.0,0.0003877,2]
[392195405,1761250164419,-151.0,0.0003877,2]
[392195406,1761250164441,-151.0,0.0003877,2]
[392195407,1761250164462,-151.0,0.0003877,2]
[392195408,1761250164483,-151.0,0.0003877,2]
[392195409,1761250164504,-151.0,0.0003877,2]
[392195410,1761250164525,-151.0,0.0003877,2]
[392195411,1761250164545,-151.0,0.0003877,2]
[392195412,1761250164566,-151.0,0.0003877,2]
[392195413,1761250164586,-151.0,0.0003877,2]
[392195414,1761250164607,-151.0,0.0003877,2]
[392195415,1761250164628,-151.0,0.0003877,2]
[392195416,1761250164649,-151.0,0.0003877,2]
[392195417,1761250164669,-151.0,0.0003877,2]
[392195418,1761250164694,-151.0,0.0003877,2]
[392195419,1761250164716,-151.0,0.0003877,2]
[392195420,1761250164738,-151.0,0.0003877,2]
[392195421,1761250164761,-291.79566579,0.0003877,2]
[392195422,1761250164781,-20665.36,0.00038793,2]
[392195423,1761250164801,-1871.4,0.0003896,37]
[392195424,1761250164821,-170.87,0.0003896,2]
[392195425,1761250164857,-540.0,0.00039321,2]
[392195426,1761250164879,-150.0,0.00039356,2]
[392195427,1761250164901,-540.0,0.00039379,2]
[392195428,1761250164921,-150.0,0.00039427,4]
[392195429,1761250164941,-600.0,0.00039445,5]
[392195430,1761250164962,-560.0,0.00039445,5]
[392195431,1761250164984,-166.66,0.00039545,30]
[392195432,1761250165005,-250.0,0.0004,7]
[392195433,1761250165026,-500.0,0.00040007,30]
[392195434,1761250165047,-500.0,0.00040129,30]
[392195435,1761250165070,-500.0,0.00040212,30]
[392195436,1761250165091,-500.0,0.00040216,30]
[392195437,1761250165112,-166.66,0.00040328,30]
[392195438,1761250165133,-1765.41,0.00040356,2]
[392195439,1761250165154,-521.54,0.00040356,120]
[392195440,1761250165175,-500.0,0.00040411,30]
[392195441,1761250165196,-500.0,0.0004044,30]
[392195442,1761250165217,-468.98696864,0.00040443,30]
[392195447,1761250185601,637.47,0.0001948,2]
[392195448,1761250185821,637.47,0.00020505,2]
[392195449,1761250186043,637.47,0.0002153,2]
[392195450,1761250186291,637.47,0.00022556,2]
[392195451,1761250186568,637.47,0.00023581,2]
[392195452,1761250186742,637.47,0.00024606,2]
[392195453,1761250187152,637.47,0.00025631,2]
[392195454,1761250187365,637.47,0.00026657,2]
[392195455,1761250187611,637.47,0.00027682,2]
[392195456,1761250187820,637.47,0.00028707,2]
[392195457,1761250188044,637.47,0.00029732,2]
[392195458,1761250188272,637.47,0.00030758,2]
[392195459,1761250188497,637.47,0.00031783,2]
[392195460,1761250188719,637.47,0.00032808,2]
[392195461,1761250194545,-181.18718084,0.00033833,2]
[392195462,1761250196066,-177.94459492,0.00033833,2]
[392195464,1761250199859,-216.805222,0.00033833,2]
[392195466,1761250203173,3038.98,0.00036612,120]
[392195467,1761250221821,151.0,0.00032895,2]
[392195474,1761250231971,-61.53300224,0.00033833,2]
[392195475,1761250231982,-151.0,0.00034421,2]
[392195476,1761250231992,-637.47,0.00034859,2]
[392195477,1761250232002,-151.0,0.00035043,2]
[392195478,1761250232012,-637.47,0.00035884,2]
[392195479,1761250232023,-185.25265247,0.00036612,2]
[392195480,1761250232032,-637.47,0.00036909,2]
[392195481,1761250232042,-181.18711399,0.00037217,120]
[392195482,1761250232053,-300.0,0.00037217,120]
[392195483,1761250232063,-501.0,0.00037612,120]
[392195484,1761250232074,-637.47,0.00037934,2]
[392195485,1761250232084,-502.0,0.00038612,120]
[392195486,1761250232094,-574.12855637,0.0003877,2]
[392195487,1761250232103,-500.0,0.0003877,2]
[392195488,1761250232113,-500.0,0.0003877,2]
[392195489,1761250232123,-500.0,0.0003877,2]
[392195490,1761250232132,-500.0,0.0003877,2]
[392195491,1761250232281,-500.0,0.0003877,2]
[392195492,1761250232298,-353.01867493,0.0003877,2]
[392195493,1761250232335,-146.98132507,0.0003877,2]
[392195494,1761250232344,-500.0,0.0003877,2]
[392195496,1761250232354,-250.0,0.0003877,2]
[392195498,1761250232364,-217.6514444,0.0003877,2]
[392195500,1761250232375,-282.3485556,0.0003877,2]
[392195501,1761250232386,-249.32309719,0.0003877,2]
[392195502,1761250232399,-250.67690281,0.0003877,2]
[392195503,1761250232408,-135.6436569,0.0003877,2]
[392195504,1761250232421,-114.3563431,0.0003877,2]
[392195505,1761250232430,-290.18209851,0.0003877,2]
[392195506,1761250232442,-209.81790149,0.0003877,2]
[392195507,1761250232451,-227.72357472,0.0003877,2]
[392195508,1761250232462,-272.27642528,0.0003877,2]
[392195509,1761250232471,-250.0,0.0003877,2]
[392195510,1761250232481,-500.0,0.0003877,2]
[392195511,1761250232490,-500.0,0.0003877,2]
[392195512,1761250232500,-500.0,0.0003877,2]
[392195513,1761250232509,-250.0,0.0003877,2]
[392195514,1761250232518,-500.0,0.0003877,2]
[392195515,1761250232528,-500.0,0.0003877,2]
[392195516,1761250232538,-500.0,0.0003877,2]
[392195517,1761250232547,-500.0,0.0003877,2]
[392195518,1761250232556,-500.0,0.0003877,2]
[392195519,1761250232567,-500.0,0.0003877,2]
[392195520,1761250232576,-500.0,0.0003877,2]
[392195521,1761250232586,-500.0,0.0003877,2]
[392195522,1761250232595,-250.0,0.0003877,2]
[392195523,1761250232605,-250.00000001,0.0003877,2]
[392195524,1761250232615,-637.47,0.0003896,2]
[392195525,1761250232624,-471.71939323,0.00039318,2]
[392195526,1761250232637,-123.65191973,0.00039318,2]
[392195527,1761250232647,-503.0,0.00039612,120]
[392195528,1761250232657,-76.08664046,0.00039866,2]
[392195529,1761250232669,-541.31341108,0.00039866,2]
[392195530,1761250232679,-216.805222,0.0004024,2]
[392195531,1761250232688,-200.0,0.00040356,2]
[392195532,1761250232698,-368.33255422,0.00040414,2]
[392195533,1761250232710,-271.91129923,0.00040414,2]
[392195534,1761250232723,-31.01303136,0.00040443,30]
[392195535,1761250232732,-500.0,0.00040484,30]
[392195536,1761250232741,-38.17335544,0.00040717,30]
[392195537,1761250237955,-319.66997617,0.00038769,15]
[392195538,1761250237965,-461.82664456,0.00040717,30]
[392195539,1761250237974,-529.92402891,0.00040903,30]
[392195540,1761250237984,-663.93287602,0.00040962,2]
[392195541,1761250237993,-411.0,0.00041094,5]
[392195542,1761250238002,-200.0,0.00041096,20]
[392195543,1761250238011,-166.66,0.00041111,30]
[392195544,1761250238020,-170.87,0.00041124,2]
[392195545,1761250238030,-500.0,0.00041165,30]
[392195546,1761250238039,-73.75427662,0.00041181,30]
[392195547,1761250238052,-852.66006281,0.00041181,30]
[392195548,1761250238062,-195.96435769,0.00041186,30]
[392195549,1761250238074,-371.42120871,0.00041186,30]
[392195550,1761250238084,-618.2881408,0.00041298,30]
[392195551,1761250238093,-238.16782972,0.00041421,30]
[392195552,1761250238103,-505.45796457,0.00041435,30]
[392195553,1761250238112,-543.41447539,0.00041452,120]
[392195554,1761250238124,-864.07552461,0.00041452,120]
[392195555,1761250238134,-367.94830989,0.00041452,120]
[392195556,1761250238165,-1039.54169011,0.00041452,120]
[392195557,1761250238175,-1134.0605718,0.00041452,120]
[392195558,1761250238187,-273.4294282,0.00041452,120]
[392195559,1761250238196,-1407.49,0.00041452,120]
[392195560,1761250238206,-825.17767861,0.00041452,120]
[392195561,1761250238218,-582.31232139,0.00041452,120]
[392195562,1761250238228,-1407.49,0.00041452,120]
[392195563,1761250238238,-353.66542732,0.00041452,120]
[392195564,1761250238255,-151.0,0.0003584,2]
[392195565,1761250238264,-1053.82457268,0.00041452,120]
[392195566,1761250238274,-1373.51043392,0.00041452,120]
[392195567,1761250238294,-33.97956608,0.00041452,120]
[392195568,1761250238304,-1407.49,0.00041452,120]
[392195569,1761250238314,-1407.49,0.00041452,120]
[392195570,1761250238323,-1407.49,0.00041452,120]
[392195571,1761250238332,-669.23766194,0.00041452,120]
[392195576,1761250240014,-468.50921776,0.00041452,120]
[392195577,1761250240251,207.80234541,0.00036612,120]
[392195578,1761250240372,-269.7431203,0.00041452,120]
[392195579,1761250240382,-1407.49,0.00041452,120]
[392195580,1761250240392,-1407.49,0.00041452,120]
[392195581,1761250240403,-1407.49,0.00041452,120]
[392195582,1761250240416,-1407.49,0.00041452,120]
[392195583,1761250240426,-1407.49,0.00041452,120]
[392195584,1761250240437,-1407.49,0.00041452,120]
[392195585,1761250240447,-1407.49,0.00041452,120]
[392195586,1761250240455,-1407.49,0.00041452,120]
[392195587,1761250240465,-1407.49,0.00041452,120]
[392195588,1761250240474,-1407.49,0.00041452,120]
[392195589,1761250240485,-1407.49,0.00041452,120]
[392195590,1761250240495,-1407.67357278,0.00041452,120]
[392195591,1761250240505,-688.49839244,0.0004151,2]
[392195592,1761250240514,-166.66,0.00041567,2]
[392195593,1761250240524,-261.88722364,0.00041901,31]
[392195594,1761250240533,-500.0,0.00041901,31]
[392195595,1761250240542,-207.13044015,0.00041901,31]
[392195596,1761250240551,-253.13291193,0.00041901,31]
[392195597,1761250240561,-999.99,0.00041902,2]
[392195598,1761250240570,-150.99,0.00041902,2]
[392195599,1761250240579,-8141.11,0.00041902,2]
[392195600,1761250240588,-250.0,0.00042,7]
[392195601,1761250240598,-713.97283296,0.00042058,2]
[392195602,1761250240611,-150.0,0.00042356,60]
[392195603,1761250240620,-150.0,0.00042356,60]
[392195604,1761250240629,-150.0,0.00042356,60]
[392195605,1761250240639,-150.0,0.00042356,60]
[392195606,1761250240648,-150.0,0.00042356,60]
[392195607,1761250240658,-740.38982778,0.00042606,2]
[392195608,1761250240667,-353.82,0.00042678,2]
[392195609,1761250240676,-166.66,0.00042939,2]
[392195610,1761250240686,-510.11,0.00043,120]
[392195611,1761250240695,-156.0,0.00043,90]
[392195612,1761250240704,-191.0,0.00043,90]
[392195613,1761250240715,-547.46,0.00043098,30]
[392195614,1761250240724,-176.3,0.00043098,30]
[392195615,1761250240737,-414.24,0.00043098,30]
[392195616,1761250240750,-150.0,0.00043098,30]
[392195617,1761250240770,-168.47,0.00043098,30]
[392195618,1761250240789,-490.47433679,0.00043154,2]
[392195619,1761250240813,-170.87,0.00043288,2]
[392195620,1761250240827,-500.0,0.00043356,60]
[392195621,1761250240845,-500.0,0.00043356,60]
[392195622,1761250240864,-1000.0,0.00043625,2]
[392195623,1761250240883,-2500.0,0.00043625,2]
[392195624,1761250240903,-15718.18930951,0.00043634,15]
[392195625,1761250240921,-5000.0,0.00043635,120]
[392195626,1761250240941,-3486.0,0.00043687,2]
[392195627,1761250240957,-6531.0,0.00043687,2]
[392195628,1761250240974,-2765.353,0.00043687,2]
[392195629,1761250240991,-557.0,0.00043687,2]
[392195630,1761250241007,-114088.132144,0.00043725,3]
[392195631,1761250241023,-162.93,0.00043725,2]
[392195632,1761250241036,-500.0,0.00043734,120]
[392195633,1761250241055,-509.4660759,0.00043734,120]
[392195634,1761250241070,-500.0,0.00043734,2]
[392195635,1761250241085,-354.5594112,0.00043734,120]
[392195636,1761250241100,-297.30502598,0.00043735,12]
[392195637,1761250241114,-1039.49037928,0.00043735,2]
[392195638,1761250241130,-239.42509452,0.00043735,120]
[392195639,1761250241144,-197.48958924,0.00043735,2]
[392195640,1761250241177,-33161.3116,0.00043735,2]
[392195641,1761250241197,-192853.51,0.00043735,2]
[392195642,1761250241218,-1000.0,0.00043735,120]
[392195643,1761250241237,-1000.0,0.00043735,2]
[392195644,1761250241254,-155555.0,0.00043735,60]
[392195645,1761250241272,-15718.18930946,0.00043774,15]
[392195646,1761250241288,-12676.4591271,0.00043805,3]
[392195647,1761250241303,-150.0,0.00043808,30]
[392195648,1761250241318,-12676.4591271,0.00043815,3]
[392195649,1761250241333,-839.93155657,0.00043824,120]
[392195650,1761250241348,-2600.0,0.00043825,7]
[392195651,1761250241363,-164793.968652,0.00043825,3]
[392195652,1761250241379,-369081.858422,0.00043825,3]
[392195653,1761250241394,-150.36,0.00043825,2]
[392195654,1761250241408,-1000.0,0.00043834,120]
[392195655,1761250241424,-500.0,0.00043835,120]
[392195656,1761250241439,-500.0,0.00043835,120]
[392195657,1761250241454,-500.0,0.00043835,120]
[392195658,1761250241479,-600.0,0.00043835,120]
[392195659,1761250241494,-500.0,0.00043835,120]
[392195660,1761250241509,-500.0,0.00043835,120]
[392195661,1761250241524,-500.0,0.00043835,120]
[392195662,1761250241540,-500.0,0.00043835,120]
[392195663,1761250241555,-500.0,0.00043835,120]
[392195664,1761250241571,-500.0,0.00043835,120]
[392195665,1761250241585,-500.0,0.00043835,120]
[392195666,1761250241608,-500.0,0.00043835,120]
[392195667,1761250241623,-500.0,0.00043835,120]
[392195668,1761250241638,-500.0,0.00043835,120]
[392195669,1761250241652,-500.0,0.00043835,120]
[392195670,1761250241668,-500.0,0.00043835,120]
[392195671,1761250241683,-500.0,0.00043835,120]
[392195672,1761250241698,-500.0,0.00043835,120]
[392195673,1761250241712,-500.0,0.00043835,120]
[392195674,1761250241729,-500.0,0.00043835,120]
[392195675,1761250241744,-500.0,0.00043835,120]
[392195676,1761250241759,-500.0,0.00043835,120]
[392195677,1761250241774,-500.0,0.00043835,120]
[392195678,1761250241789,-500.0,0.00043835,120]
[392195679,1761250241806,-500.0,0.00043835,120]
[392195680,1761250241821,-310.07800215,0.00043835,120]
[392195681,1761250241836,-500.88885432,0.00043835,120]
[392195682,1761250241853,-295.00582686,0.00043835,120]
[392195683,1761250241863,-500.0,0.00043835,120]
[392195684,1761250241873,-500.0,0.00043835,120]
[392195685,1761250242060,-500.0,0.00043835,120]
[392195686,1761250242084,-500.0,0.00043835,120]
[392195687,1761250242094,-513.2744076,0.00043835,120]
[392195688,1761250242103,-500.0,0.00043835,120]
[392195689,1761250242113,-500.0,0.00043835,120]
[392195690,1761250242123,-500.0,0.00043835,120]
[392195691,1761250242132,-500.0,0.00043835,120]
[392195692,1761250242142,-500.0,0.00043835,120]
[392195693,1761250242151,-500.0,0.00043835,120]
[392195694,1761250242161,-500.0,0.00043835,120]
[392195695,1761250242170,-435.44400792,0.00043835,120]
[392195696,1761250242181,-500.0,0.00043835,120]
[392195697,1761250242190,-500.0,0.00043835,120]
[392195698,1761250242199,-500.0,0.00043835,120]
[392195699,1761250242209,-500.0,0.00043835,120]
[392195700,1761250242218,-500.0,0.00043835,120]
[392195701,1761250242227,-500.0,0.00043835,120]
[392195702,1761250242237,-555.75299686,0.00043835,120]
[392195703,1761250242246,-502.56642532,0.00043835,120]
[392195704,1761250242256,-500.0,0.00043835,120]
[392195705,1761250242265,-500.0,0.00043835,120]
[392195706,1761250242275,-544.13271443,0.00043835,120]
[392195707,1761250242284,-500.0,0.00043835,120]
[392195708,1761250242294,-500.0,0.00043835,120]
[392195709,1761250242303,-500.0,0.00043835,120]
[392195710,1761250242313,-500.0,0.00043835,120]
[392195711,1761250242322,-500.0,0.00043835,120]
[392195712,1761250242331,-500.0,0.00043835,120]
[392195713,1761250242340,-508.60402753,0.00043835,120]
[392195714,1761250242349,-500.0,0.00043835,120]
[392195715,1761250242358,-500.0,0.00043835,120]
[392195716,1761250242367,-500.0,0.00043835,120]
[392195717,1761250242376,-509.78565981,0.00043835,120]
[392195718,1761250242385,-500.0,0.00043835,120]
[392195719,1761250242395,-500.0,0.00043835,120]
[392195720,1761250242404,-507.27836647,0.00043835,120]
[392195721,1761250242414,-500.0,0.00043835,120]
[392195722,1761250242423,-516.55677889,0.00043835,120]
[392195723,1761250242432,-500.0,0.00043835,120]
[392195724,1761250242444,-600.26,0.00043835,120]
[392195725,1761250242457,-500.0,0.00043835,120]
[392195726,1761250242466,-506.29376393,0.00043835,120]
[392195727,1761250242475,-500.0,0.00043835,120]
[392195728,1761250242485,-508.48330876,0.00043835,120]
[392195729,1761250242495,-500.0,0.00043835,120]
[392195730,1761250242505,-500.0,0.00043835,120]
[392195731,1761250242514,-500.0,0.00043835,120]
[392195732,1761250242523,-500.0,0.00043835,120]
[392195733,1761250242533,-500.0,0.00043835,120]
[392195734,1761250242542,-500.0,0.00043835,120]
[392195735,1761250242551,-500.0,0.00043835,120]
[392195736,1761250242560,-500.0,0.00043835,120]
[392195737,1761250242569,-500.0,0.00043835,120]
[392195738,1761250242579,-500.0,0.00043835,120]
[392195739,1761250242588,-500.0,0.00043835,120]
[392195740,1761250242597,-500.0,0.00043835,120]
[392195741,1761250242607,-500.0,0.00043835,120]
[392195742,1761250242616,-500.0,0.00043835,120]
[392195743,1761250242625,-500.0,0.00043835,120]
[392195744,1761250242635,-500.0,0.00043835,120]
[392195745,1761250242644,-500.0,0.00043835,120]
[392195746,1761250242653,-500.0,0.00043835,120]
[392195747,1761250242662,-500.0,0.00043835,120]
[392195748,1761250242671,-406.48388069,0.00043835,120]
[392195749,1761250242681,-505.70495669,0.00043835,120]
[392195750,1761250242690,-500.0,0.00043835,120]
[392195751,1761250242700,-500.0,0.00043835,120]
[392195752,1761250242709,-500.0,0.00043835,120]
[392195753,1761250242718,-500.0,0.00043835,120]
[392195754,1761250242728,-500.0,0.00043835,120]
[392195755,1761250242738,-500.0,0.00043835,120]
[392195756,1761250242750,-523.46330858,0.00043835,120]
[392195757,1761250242759,-500.0,0.00043835,120]
[392195758,1761250242769,-500.0,0.00043835,120]
[392195759,1761250242778,-500.0,0.00043835,120]
[392195760,1761250242789,-500.0,0.00043835,120]
[392195761,1761250242798,-500.0,0.00043835,120]
[392195762,1761250242807,-500.0,0.00043835,120]
[392195764,1761250242818,-500.0,0.00043835,120]
[392195765,1761250242827,-500.0,0.00043835,120]
[392195766,1761250242836,-500.0,0.00043835,120]
[392195767,1761250242846,-500.0,0.00043835,120]
[392195768,1761250242855,-500.0,0.00043835,120]
[392195769,1761250242865,-500.0,0.00043835,120]
[392195770,1761250242874,-180.85611915,0.00043835,120]
[392195771,1761250242884,-500.0,0.00043835,120]
[392195772,1761250242894,-500.0,0.00043835,120]
[392195773,1761250242903,-500.0,0.00043835,120]
[392195774,1761250242914,-500.0,0.00043835,120]
[392195775,1761250242923,-500.0,0.00043835,120]
[392195777,1761250242933,-500.0,0.00043835,120]
[392195779,1761250242943,-500.0,0.00043835,120]
[392195780,1761250242951,-500.0,0.00043835,120]
[392195781,1761250242961,-513.61436218,0.00043835,120]
[392195782,1761250242971,-500.0,0.00043835,120]
[392195783,1761250242980,-300.32990459,0.00043835,120]
[392195784,1761250242990,-500.0,0.00043835,120]
[392195785,1761250242999,-500.0,0.00043835,120]
[392195786,1761250243009,-550.08,0.00043835,120]
[392195787,1761250243019,-500.0,0.00043835,120]
[392195788,1761250243028,-502.22089564,0.00043835,120]
[392195789,1761250243038,-500.0,0.00043835,120]
[392195790,1761250243047,-427.30244009,0.00043835,120]
[392195791,1761250243057,-500.0,0.00043835,120]
[392195792,1761250243067,-500.0,0.00043835,120]
[392195793,1761250243076,-174.44,0.00043835,120]
[392195794,1761250243085,-534.8689222,0.00043835,120]
[392195795,1761250243094,-539.39949223,0.00043835,120]
[392195796,1761250243104,-500.0,0.00043835,120]
[392195797,1761250243112,-500.0,0.00043835,120]
[392195799,1761250243122,-500.0,0.00043835,120]
[392195801,1761250243131,-500.0,0.00043835,120]
[392195802,1761250243140,-500.0,0.00043835,120]
[392195803,1761250243149,-500.0,0.00043835,120]
[392195804,1761250243157,-500.0,0.00043835,120]
[392195805,1761250243167,-521.00751781,0.00043835,120]
[392195806,1761250243176,-500.0,0.00043835,120]
[392195807,1761250243186,-500.0,0.00043835,120]
[392195808,1761250243195,-494.06739521,0.00043835,120]
[392195809,1761250243204,-500.0,0.00043835,120]
[392195810,1761250243213,-500.0,0.00043835,120]
[392195811,1761250243223,-500.0,0.00043835,120]
[392195812,1761250243232,-500.0,0.00043835,120]
[392195813,1761250243241,-500.0,0.00043835,120]
[392195814,1761250243251,-500.0,0.00043835,120]
[392195815,1761250243261,-500.0,0.00043835,120]
[392195816,1761250243271,-500.0,0.00043835,120]
[392195817,1761250243280,-614.41,0.00043835,120]
[392195818,1761250243290,-500.0,0.00043835,120]
[392195819,1761250243300,-614.41,0.00043835,120]
[392195820,1761250243309,-614.41,0.00043835,120]
[392195821,1761250243319,-614.41,0.00043835,120]
[392195822,1761250243328,-614.41,0.00043835,120]
[392195823,1761250243337,-614.41,0.00043835,120]
[392195824,1761250243348,-614.41,0.00043835,120]
[392195825,1761250243358,-302.06297344,0.00043835,120]
[392195826,1761250243367,-614.41,0.00043835,120]
[392195827,1761250243376,-614.41,0.00043835,120]
[392195828,1761250243385,-614.41,0.00043835,120]
[392195829,1761250243395,-502.34891779,0.00043835,120]
[392195830,1761250243404,-500.0,0.00043835,120]
[392195831,1761250243414,-500.0,0.00043835,120]
[392195832,1761250243423,-500.0,0.00043835,120]
[392195833,1761250243432,-166.28452606,0.00043835,120]
[392195834,1761250243442,-500.0,0.00043835,120]
[392195835,1761250243451,-500.0,0.00043835,120]
[392195836,1761250243461,-500.0,0.00043835,120]
[392195837,1761250243470,-500.0,0.00043835,120]
[392195838,1761250243479,-500.0,0.00043835,120]
[392195839,1761250243489,-500.0,0.00043835,120]
[392195840,1761250243498,-531.25,0.00043835,120]
[392195841,1761250243507,-500.0,0.00043835,120]
[392195842,1761250243517,-500.0,0.00043835,120]
[392195843,1761250243526,-500.0,0.00043835,120]
[392195844,1761250243535,-500.0,0.00043835,120]
[392195845,1761250243545,-500.0,0.00043835,120]
[392195846,1761250243554,-511.10946585,0.00043835,120]
[392195847,1761250243564,-270.43894846,0.00043835,120]
[392195848,1761250243573,-500.0,0.00043835,90]
[392195849,1761250243583,-500.0,0.00043835,90]
[392195850,1761250243592,-500.0,0.00043835,90]
[392195851,1761250243602,-500.0,0.00043835,120]
[392195852,1761250243611,-500.0,0.00043835,120]
[392195853,1761250243620,-500.0,0.00043835,120]
[392195854,1761250243630,-500.0,0.00043835,120]
[392195855,1761250243639,-500.0,0.00043835,120]